bitfinex-derivatives/quotes_BTCF0:USTF0_20260107
["timestamp","ask_amount","ask_price","bid_price","bid_amount"]
[1767820644536,0.09328,91237.0,91214.0,0.09497255]
[1767820644736,0.02916902,91236.0,91214.0,0.09497255]
[1767820645436,0.12244902,91236.0,91214.0,0.09497255]
[1767820646236,0.02916902,91236.0,91214.0,0.09497255]
[1767820646536,0.12244902,91236.0,91214.0,0.09497255]
[1767820647430,0.02916902,91235.0,91214.0,0.09497255]
[1767820653246,0.02564561,91235.0,91214.0,0.09497255]
[1767820658457,0.09328,91236.0,82990.0,0.085]
[1767820658458,0.11827298,91228.0,91201.0,0.09591713]
[1767820658639,0.02564561,91221.0,91201.0,0.09591713]
[1767820660051,0.02564561,91220.0,91201.0,0.09591713]
[1767820660941,0.02564561,91219.0,91201.0,0.09591713]
[1767820661252,0.02564561,91217.0,91199.0,0.00219302]
[1767820661752,0.02564561,91217.0,91199.0,0.09811015]
[1767820661947,0.02564561,91217.0,91199.0,0.10908615]
[1767820662146,0.02564561,91217.0,91201.0,0.010976]
[1767820662549,0.02564561,91217.0,91203.0,0.010976]
[1767820663051,0.02564561,91221.0,91205.0,0.010976]
[1767820664955,0.02564561,91221.0,91202.0,0.010976]
[1767820668559,0.02564561,91221.0,91199.0,0.09811015]
[1767820668951,0.02564561,91221.0,91203.0,0.010976]
[1767820670061,0.02564561,91221.0,91205.0,0.010976]
[1767820671159,0.02564561,91221.0,91204.0,0.010976]
[1767820674757,0.11827298,91221.0,91202.0,0.010976]
[1767820674963,0.02564561,91220.0,91203.0,0.010976]
[1767820680568,0.02564561,91218.0,91203.0,0.010976]
[1767820681771,0.02564561,91218.0,91204.0,0.010976]
[1767820681970,0.11892561,91218.0,91204.0,0.010976]
[1767820682165,0.02564561,91218.0,91206.0,0.010975]
[1767820682366,0.11892561,91218.0,91204.0,0.010976]
[1767820682563,0.02343628,91240.0,91209.0,0.11059756]
[1767820682775,0.02343628,91238.0,91215.0,0.11059656]
[1767820682962,0.02343628,91236.0,91217.0,0.11059656]
[1767820683159,0.0956846,91247.0,91217.0,0.09962256]
[1767820683367,0.933,91279.0,91228.0,0.09962256]
[1767820683368,0.09328,91246.0,91228.0,0.09962256]
[1767820683566,0.02343628,91252.0,91229.0,0.09962256]
[1767820683866,0.09328,91251.0,91232.0,0.09962256]
[1767820684263,0.09328,91251.0,91233.0,0.11059456]
[1767820684980,0.09328,91251.0,91236.0,0.11059456]
[1767820685977,0.02343628,91255.0,91236.0,0.11059456]
[1767820686170,0.09328,91250.0,91238.0,0.11059456]
[1767820686574,0.02343628,91258.0,91238.0,0.11059456]
[1767820686871,0.02343628,91256.0,91238.0,0.11059456]
[1767820687278,0.09328,91255.0,91238.0,0.11059456]
[1767820687465,0.11671628,91255.0,91238.0,0.09962256]
[1767820687872,0.02343628,91254.0,91238.0,0.09962256]
[1767820692589,0.09328,91255.0,91239.0,0.11059456]
[1767820695510,0.09328,91255.0,91239.0,0.09962256]
[1767820695700,0.02343628,91254.0,91236.0,0.010972]
[1767820696108,0.02343628,91254.0,91234.0,0.09962256]
[1767820696608,0.02343628,91254.0,91235.0,0.010972]
[1767820696808,0.11671628,91255.0,91238.0,0.09962256]
[1767820697009,0.09328,91255.0,91238.0,0.09962256]
[1767820698204,0.02343628,91254.0,91238.0,0.09962256]
[1767820702005,0.09328,91255.0,91238.0,0.09962256]
[1767820703304,0.11671628,91255.0,91238.0,0.09962256]
[1767820705216,0.11671628,91255.0,91239.0,0.010972]
[1767820706513,0.11671628,91255.0,91240.0,0.13326508]
[1767820706713,0.09328,91255.0,91245.0,0.13326508]
[1767820707113,0.8262,91268.0,91245.0,0.13326508]
[1767820707114,0.09328,91271.0,91246.0,0.4]
[1767820707320,0.02343628,91281.0,91264.0,0.09962256]
[1767820707625,0.03815398,91282.0,91271.0,0.09962256]
[1767820707823,0.03815398,91282.0,91254.0,0.01097]
[1767820707824,0.09328,91286.0,91277.0,0.11058956]
[1767820708007,0.09324,91292.0,91279.0,0.13326508]
[1767820708211,0.09324,91296.0,91280.0,0.09962256]
[1767820709213,0.09324,91296.0,91274.0,0.09962256]
[1767820709214,0.02343628,91295.0,91274.0,0.09962256]
[1767820709520,0.09324,91296.0,91271.0,0.09962256]
[1767820709521,0.02343628,91290.0,91271.0,0.09962256]
[1767820710517,0.11912088,91286.0,91265.0,0.09962256]
[1767820710823,0.02343628,91284.0,91266.0,0.09324]
[1767820711619,0.02343628,91284.0,91266.0,0.19286256]
[1767820711821,0.02709234,91289.0,91267.0,0.09101847]
[1767820712421,0.02709234,91288.0,91267.0,0.09101847]
[1767820716620,0.02509234,91288.0,91267.0,0.09101847]
[1767820721425,0.02709234,91286.0,91267.0,0.09101847]
[1767820721727,0.02709234,91289.0,91267.0,0.09101847]
[1767820722825,0.02709234,91279.0,91259.0,0.010969]
[1767820723027,0.02709234,91279.0,91259.0,0.10198747]
[1767820725230,0.02709234,91279.0,91259.0,0.09101847]
[1767820730226,0.02709234,91278.0,91259.0,0.09101847]
[1767820730535,0.13326508,91280.0,91259.0,0.09101847]
[1767820730736,0.16035742,91280.0,91259.0,0.09101847]
[1767820732339,0.13326508,91280.0,91259.0,0.09101847]
[1767820732526,0.13326508,91280.0,91261.0,0.09101847]
[1767820735533,0.02709234,91280.0,91261.0,0.09101847]
[1767820736122,0.09324,91281.0,91261.0,0.09101847]
[1767820736526,0.13326508,91280.0,91261.0,0.09101847]
[1767820740450,0.09324,91281.0,91261.0,0.09101847]
[1767820741141,0.13326508,91280.0,91261.0,0.09101847]
[1767820741550,0.02488439,91279.0,91261.0,0.09101847]
[1767820742141,0.02488439,91279.0,91252.0,0.01097]
[1767820742142,0.02609484,91270.0,91245.0,0.09457887]
[1767820742347,0.13326508,91260.0,91245.0,0.09457887]
[1767820742940,0.02609484,91266.0,91245.0,0.09457887]
[1767820745547,0.09242425,91265.0,91245.0,0.09457887]
[1767820745751,0.02609484,91254.0,91234.0,0.19879087]
[1767820746052,0.13326508,91250.0,91234.0,0.18781887]
[1767820746354,0.02609484,91250.0,91234.0,0.09324]
[1767820746543,0.13326508,91250.0,91234.0,0.09324]
[1767820746938,0.02609484,91257.0,91237.0,0.09457887]
[1767820747142,0.09324,91258.0,91241.0,0.09457887]
[1767820747541,0.11851909,91283.0,91241.0,0.09457887]
[1767820747741,0.11851909,91283.0,91261.0,0.09457887]
[1767820749039,0.11851909,91282.0,91261.0,0.09457887]
[1767820751248,0.09324,91288.0,91270.0,0.13326508]
[1767820752155,0.09324,91288.0,91270.0,0.14423308]
[1767820753350,0.09324,91288.0,91272.0,0.010968]
[1767820753553,0.09324,91288.0,91271.0,0.09457887]
[1767820754151,0.11851909,91286.0,91268.0,0.010968]
[1767820754557,0.09242425,91286.0,91268.0,0.010968]
[1767820755651,0.09242425,91286.0,91266.0,0.18781887]
[1767820755847,0.11851909,91284.0,91266.0,0.09324]
[1767820756048,0.11851909,91283.0,91266.0,0.09324]
[1767820756251,0.09242425,91283.0,91266.0,0.09324]
[1767820757057,0.09242425,91283.0,91266.0,0.104208]
[1767820758359,0.09242425,91283.0,91266.0,0.09324]
[1767820759560,0.11851909,91283.0,91266.0,0.09324]
[1767820760458,0.13326508,91280.0,91255.0,0.09457887]
[1767820760664,0.11851909,91272.0,91256.0,0.09324]
[1767820760865,0.11851909,91272.0,91257.0,0.09324]
[1767820762759,0.11851909,91269.0,91253.0,0.01097]
[1767820762966,0.11851909,91267.0,91253.0,0.01097]
[1767820763165,0.11851909,91267.0,91254.0,0.09324]
[1767820763668,0.09242425,91267.0,91254.0,0.09324]
[1767820764166,0.09242425,91267.0,91254.0,0.10421]
[1767820765566,0.09242425,91267.0,91254.0,0.09324]
[1767820765776,0.09242425,91267.0,91254.0,0.10421]
[1767820765964,0.02609484,91271.0,91254.0,0.10421]
[1767820766164,0.11851909,91267.0,91254.0,0.10421]
[1767820767766,0.09242425,91267.0,91254.0,0.10421]
[1767820768362,0.09242425,91267.0,91254.0,0.09324]
[1767820768763,0.11851909,91266.0,91248.0,0.01097]
[1767820769070,0.11851909,91265.0,91249.0,0.09324]
[1767820769371,0.09242425,91265.0,91249.0,0.09324]
[1767820769857,0.09242425,91265.0,91245.0,0.09457887]
[1767820769858,0.02609484,91259.0,91245.0,0.010971]
[1767820770063,0.11851909,91259.0,91246.0,0.09324]
[1767820770673,0.09242425,91259.0,91246.0,0.09324]
[1767820771074,0.09242425,91259.0,91247.0,0.010971]
[1767820771481,0.11851909,91266.0,91249.0,0.01097]
[1767820771677,0.11851909,91264.0,91249.0,0.01097]
[1767820771866,0.1210281,91263.0,91249.0,0.01097]
[1767820775473,0.1210281,91263.0,91246.0,0.09324]
[1767820776280,0.1210281,91263.0,91246.0,0.104211]
[1767820776478,0.1210281,91259.0,91246.0,0.09324]
[1767820777980,0.09693104,91259.0,91246.0,0.09324]
[1767820779479,0.1210281,91258.0,91246.0,0.09324]
[1767820779669,0.09693104,91258.0,91246.0,0.09324]
[1767820785987,0.1210281,91257.0,91246.0,0.09324]
[1767820786491,0.09693104,91257.0,91246.0,0.09324]
[1767820789282,0.09693104,91257.0,91246.0,0.104211]
[1767820789683,0.09693104,91257.0,91246.0,0.09324]
[1767820791392,0.1210281,91261.0,91246.0,0.09324]
[1767820791689,0.02409706,91260.0,91246.0,0.09324]
[1767820801403,0.09693104,91261.0,91246.0,0.104211]
[1767820802904,0.11834381,91261.0,91246.0,0.104211]
[1767820803399,0.11834381,91261.0,91246.0,0.09324]
[1767820803602,0.02141277,91260.0,91246.0,0.09324]
[1767820805801,0.02141277,91260.0,91246.0,0.104211]
[1767820806100,0.02141277,91264.0,91247.0,0.01097]
[1767820806795,0.11933104,91264.0,91248.0,0.01097]
[1767820808906,0.11933104,91264.0,91246.0,0.09324]
[1767820810312,0.11933104,91264.0,91249.0,0.01097]
[1767820810716,0.11933104,91264.0,91248.0,0.01097]
[1767820811322,0.02141277,91262.0,91246.0,0.010971]
[1767820812527,0.02141277,91262.0,91243.0,0.19083239]
[1767820812716,0.02141277,91262.0,91249.0,0.01097]
[1767820813422,0.02141277,91261.0,91249.0,0.01097]
[1767820813628,0.09791827,91262.0,91249.0,0.01097]
[1767820814429,0.09791827,91262.0,91246.0,0.010971]
[1767820814932,0.11933104,91262.0,91245.0,0.010971]
[1767820815230,0.02141277,91261.0,91245.0,0.010971]
[1767820815430,0.02141277,91261.0,91243.0,0.09324]
[1767820815630,0.02141277,91261.0,91248.0,0.01097]
[1767820817729,0.02141277,91261.0,91247.0,0.01097]
[1767820819535,0.09791827,91262.0,91247.0,0.01097]
[1767820820630,0.09791827,91262.0,91244.0,0.010971]
[1767820820831,0.02141277,91243.0,91235.0,0.104212]
[1767820821033,0.09791827,91244.0,91235.0,0.09324]
[1767820821628,0.02141277,91247.0,91235.0,0.09324]
[1767820823136,0.09324,91256.0,91235.0,0.09324]
[1767820823137,0.11933104,91245.0,91235.0,0.09324]
[1767820823441,0.09791827,91239.0,91235.0,0.09324]
[1767820823626,0.02141277,91243.0,91227.0,0.010973]
[1767820824239,0.02141277,91242.0,91227.0,0.010973]
[1767820824441,0.11933104,91242.0,91227.0,0.010973]
[1767820824935,0.11933104,91242.0,91226.0,0.09324]
[1767820825142,0.02141277,91240.0,91226.0,0.09324]
[1767820827037,0.11933104,91240.0,91226.0,0.09324]
[1767820827237,0.09791827,91240.0,91226.0,0.09324]
[1767820829344,0.09791827,91240.0,91225.0,0.010973]
[1767820829545,0.09791827,91240.0,91227.0,0.010973]
[1767820829749,0.09791827,91240.0,91225.0,0.09324]
[1767820833440,0.0206927,91228.0,91202.0,0.09952453]
[1767820833641,0.11656849,91225.0,91203.0,0.09324]
[1767820833842,0.11656849,91225.0,91207.0,0.010975]
[1767820834446,0.13331826,91230.0,91208.0,0.09324]
[1767820834447,0.0206927,91223.0,91208.0,0.09324]
[1767820835942,0.11656849,91218.0,91201.0,0.010976]
[1767820836245,0.0206927,91216.0,91202.0,0.09324]
[1767820839341,0.09587579,91217.0,91203.0,0.010976]
[1767820840949,0.0206927,91228.0,91205.0,0.010976]
[1767820841154,0.11656849,91223.0,91202.0,0.104216]
[1767820841348,0.13331826,91230.0,91202.0,0.104216]
[1767820841349,0.11656849,91222.0,91202.0,0.09324]
[1767820841652,0.0206927,91215.0,91202.0,0.09324]
[1767820842047,0.09587579,91216.0,91202.0,0.09324]
[1767820843451,0.0206927,91211.0,91199.0,0.00219302]
[1767820843648,0.0206927,91210.0,91199.0,0.00219302]
[1767820843851,0.0206927,91210.0,91172.0,0.09756195]
[1767820843852,0.0206927,91204.0,91172.0,0.09756195]
[1767820844042,0.0206927,91204.0,91169.0,0.00219374]
[1767820844043,0.0206927,91180.0,91169.0,0.00219374]
[1767820844348,0.09328,91188.0,91176.0,0.01752146]
[1767820844555,0.11656849,91198.0,91180.0,0.14429726]
[1767820844752,0.09328,91197.0,91182.0,0.010978]
[1767820844945,9.674e-05,91196.0,91182.0,0.010978]
[1767820845140,9.674e-05,91196.0,91184.0,0.010978]
[1767820845339,0.13331826,91220.0,91187.0,0.010978]
[1767820845340,0.09587579,91210.0,91187.0,0.010978]
[1767820845546,0.09328,91209.0,91191.0,0.010977]
[1767820845854,0.18915579,91209.0,91191.0,0.010977]
[1767820846147,0.09587579,91208.0,91191.0,0.010977]
[1767820846741,0.09587579,91208.0,91190.0,0.13331826]
[1767820847350,0.09587579,91206.0,91184.0,0.0194697]
[1767820847548,0.11656849,91204.0,91184.0,0.0194697]
[1767820847752,0.11656849,91202.0,91182.0,0.09952453]
[1767820848054,0.11656849,91202.0,91182.0,0.11899423]
[1767820848554,0.11656849,91201.0,91182.0,0.0194697]
[1767820848739,0.09587579,91198.0,91179.0,0.09328]
[1767820849248,0.11656849,91196.0,91179.0,0.09328]
[1767820849439,0.11656849,91198.0,91179.0,0.09328]
[1767820849638,0.11656849,91197.0,91179.0,0.09328]
[1767820850043,0.11656849,91197.0,91180.0,0.13331826]
[1767820850444,0.11656849,91195.0,91179.0,0.09328]
[1767820851754,0.0206927,91191.0,91179.0,0.09328]
[1767820851944,0.11656849,91191.0,91179.0,0.09328]
[1767820852351,0.09587579,91191.0,91179.0,0.09328]
[1767820852848,0.09587579,91191.0,91175.0,0.0304487]
[1767820854458,0.09587579,91191.0,91180.0,0.13331826]
[1767820857460,0.09587579,91191.0,91175.0,0.010979]
[1767820857650,0.09587579,91191.0,91180.0,0.13331826]
[1767820860345,0.22082549,91197.0,91180.0,0.13331826]
[1767820860548,0.11656849,91196.0,91180.0,0.13331826]
[1767820860749,0.0206927,91195.0,91180.0,0.13331826]
[1767820861051,0.11656849,91195.0,91180.0,0.13331826]
[1767820862050,0.09587579,91195.0,91180.0,0.13331826]
[1767820862247,0.02050764,91194.0,91180.0,0.13331826]
[1767820862459,0.11551893,91193.0,91180.0,0.13331826]
[1767820862758,0.09501129,91193.0,91180.0,0.13331826]
[1767820863065,0.09328,91197.0,91174.0,0.11409947]
[1767820863066,0.11551893,91192.0,91174.0,0.11409947]
[1767820863744,0.11551893,91191.0,91174.0,0.09328]
[1767820864755,0.09501129,91191.0,91175.0,0.010979]
[1767820865666,0.09501129,91191.0,91175.0,0.03179847]
[1767820866160,0.09501129,91191.0,91175.0,0.02081947]
[1767820866759,0.02050764,91194.0,91176.0,0.03179847]
[1767820866953,0.11551893,91195.0,91180.0,0.13331826]
[1767820868153,0.09501129,91195.0,91180.0,0.13331826]
[1767820868956,0.09501129,91195.0,91178.0,0.02081947]
[1767820869158,0.09501129,91195.0,91180.0,0.13331826]
[1767820872658,0.09501129,91195.0,91178.0,0.02081947]
[1767820872965,0.09501129,91195.0,91180.0,0.13331826]
[1767820874755,0.10598829,91195.0,91180.0,0.13331826]
[1767820874960,0.09501129,91195.0,91180.0,0.13331826]
[1767820876962,0.11551893,91195.0,91180.0,0.13331826]
[1767820877464,0.12649593,91194.0,91180.0,0.13331826]
[1767820877665,0.09501129,91193.0,91180.0,0.13331826]
[1767820877867,0.11551893,91192.0,91175.0,0.010979]
[1767820878564,0.11551893,91196.0,91181.0,0.010978]
[1767820878764,0.11551893,91196.0,91178.0,0.010979]
[1767820878965,0.11551893,91196.0,91180.0,0.13331826]
[1767820882271,0.11551893,91195.0,91180.0,0.13331826]
[1767820883759,0.010977,91194.0,91180.0,0.13331826]
[1767820884060,0.09501129,91194.0,91180.0,0.13331826]
[1767820884264,0.11551893,91191.0,91180.0,0.13331826]
[1767820884569,0.11551893,91191.0,91174.0,0.09328]
[1767820886158,0.010977,91194.0,91175.0,0.02081947]
[1767820886455,0.12649593,91194.0,91175.0,0.02081947]
[1767820887065,0.11551893,91192.0,91174.0,0.09328]
[1767820887267,0.09501129,91192.0,91175.0,0.02081947]
[1767820887662,0.09501129,91192.0,91176.0,0.010979]
[1767820887862,0.09501129,91192.0,91175.0,0.02081947]
[1767820890374,0.09501129,91192.0,91177.0,0.010979]
[1767820890873,0.02050764,91195.0,91176.0,0.02081947]
[1767820891068,0.02050764,91195.0,91176.0,0.03179847]
[1767820891374,0.11551893,91192.0,91175.0,0.010979]
[1767820891669,0.11551893,91192.0,91174.0,0.11409947]
[1767820891870,0.11551893,91192.0,91174.0,0.12507847]
[1767820894475,0.11551893,91192.0,91176.0,0.010979]
[1767820895177,0.11551893,91192.0,91177.0,0.010979]
[1767820895178,0.09501129,91192.0,91177.0,0.010979]
[1767820895976,0.010977,91191.0,91174.0,0.09328]
[1767820896274,0.09501129,91192.0,91174.0,0.12339955]
[1767820896677,0.10598829,91192.0,91174.0,0.12339955]
[1767820897777,0.09501129,91192.0,91175.0,0.010979]
[1767820899481,0.010977,91195.0,91175.0,0.010979]
[1767820899482,0.01883866,91190.0,91175.0,0.010979]
[1767820899682,0.11151926,91187.0,91174.0,0.09328]
[1767820899873,0.11151926,91186.0,91174.0,0.104259]
[1767820900177,0.0926806,91186.0,91174.0,0.104259]
[1767820900378,0.01883866,91190.0,91174.0,0.104259]
[1767820900379,0.01883866,91190.0,91175.0,0.010979]
[1767820904283,0.11151926,91190.0,91175.0,0.010979]
[1767820904779,0.11151926,91190.0,91174.0,0.09328]
[1767820907490,0.11151926,91190.0,91176.0,0.010979]
[1767820907792,0.11151926,91190.0,91174.0,0.09328]
[1767820908294,0.01883866,91188.0,91174.0,0.09328]
[1767820909895,0.0926806,91189.0,91175.0,0.010979]
[1767820910398,0.0926806,91189.0,91174.0,0.09328]
[1767820910604,0.0926806,91189.0,91177.0,0.010979]
[1767820911105,0.11151926,91189.0,91177.0,0.010979]
[1767820911296,0.11151926,91189.0,91174.0,0.09328]
[1767820911496,0.01883866,91187.0,91174.0,0.09328]
[1767820911696,0.11151926,91187.0,91171.0,0.1043]
[1767820911995,0.0926806,91187.0,91171.0,0.1043]
[1767820913899,0.11151926,91187.0,91171.0,0.1043]
[1767820914200,0.11151926,91186.0,91171.0,0.1043]
[1767820914401,0.0926806,91186.0,91171.0,0.1043]
[1767820916101,0.01883866,91189.0,91174.0,0.010979]
[1767820916302,0.01883866,91189.0,91176.0,0.010979]
[1767820917105,0.0926806,91191.0,91176.0,0.010979]
[1767820918606,0.010974,91215.0,91172.0,0.01098]
[1767820918812,0.0926806,91200.0,91186.0,0.010978]
[1767820919107,0.0926806,91200.0,91182.0,0.11246055]
[1767820919407,0.11151926,91202.0,91183.0,0.01914055]
[1767820919599,0.01883866,91201.0,91183.0,0.01914055]
[1767820920000,0.11151926,91200.0,91182.0,0.09332]
[1767820920199,0.11151926,91200.0,91185.0,0.010978]
[1767820920400,0.11151926,91198.0,91182.0,0.104298]
[1767820920607,0.11151926,91198.0,91184.0,0.010978]
[1767820922109,0.0926806,91198.0,91186.0,0.010978]
[1767820922909,0.0926806,91198.0,91182.0,0.09332]
[1767820924207,0.0926806,91198.0,91186.0,0.010978]
[1767820925010,0.0926806,91198.0,91188.0,0.010978]
[1767820926806,0.0926806,91198.0,91185.0,0.010978]
[1767820927211,0.0926806,91198.0,91182.0,0.09332]
[1767820928112,0.10858477,91198.0,91186.0,0.010978]
[1767820928709,0.10858477,91198.0,91182.0,0.104298]
[1767820928909,0.10858477,91198.0,91184.0,0.010978]
[1767820929411,0.10858477,91198.0,91186.0,0.010978]
[1767820929615,0.10858477,91198.0,91188.0,0.010978]
[1767820930814,0.10858477,91198.0,91190.0,0.010977]
[1767820931314,0.0926806,91198.0,91189.0,0.010978]
[1767820932905,0.10858477,91198.0,91187.0,0.010978]
[1767820933414,0.10858477,91198.0,91186.0,0.010978]
[1767820933814,0.10630064,91197.0,91186.0,0.010978]
[1767820934114,0.10630064,91197.0,91188.0,0.010978]
[1767820934814,0.10630064,91197.0,91185.0,0.010978]
[1767820935414,0.10630064,91197.0,91186.0,0.010978]
[1767820935611,0.10630064,91196.0,91185.0,0.010978]
[1767820936418,0.10630064,91196.0,91186.0,0.010978]
[1767820936721,0.10630064,91196.0,91182.0,0.09332]
[1767820938114,0.10630064,91196.0,91187.0,0.010978]
[1767820940526,0.09039647,91192.0,91182.0,0.09332]
[1767820940716,0.01590417,91202.0,91187.0,0.010978]
[1767820940916,0.01590417,91199.0,91192.0,0.010977]
[1767820941210,0.09332,91217.0,91200.0,0.010976]
[1767820941419,0.09332,91216.0,91200.0,0.010976]
[1767820941616,0.09332,91219.0,91200.0,0.010976]
[1767820942018,0.09332,91219.0,91198.0,0.010976]
[1767820943128,0.09039647,91218.0,91198.0,0.010976]
[1767820948631,0.09039647,91218.0,91195.0,0.010977]
[1767820949625,0.09039647,91218.0,91197.0,0.010977]
[1767820950428,0.09039647,91218.0,91195.0,0.010977]
[1767820950633,0.09039647,91218.0,91192.0,0.09332]
[1767820951133,0.09039647,91218.0,91198.0,0.010976]
[1767820959631,0.09039647,91218.0,91200.0,0.010976]
[1767820959832,0.09039647,91218.0,91192.0,0.09332]
[1767820960244,0.09039647,91218.0,91198.0,0.010976]
[1767820961242,0.09328,91217.0,91198.0,0.010976]
[1767820961746,0.09422949,91216.0,91198.0,0.010976]
[1767820964137,0.09422949,91216.0,91193.0,0.010977]
[1767820964341,0.09422949,91210.0,91196.0,0.010977]
[1767820964535,0.01669637,91209.0,91196.0,0.010977]
[1767820969243,0.01669637,91209.0,91195.0,0.010977]
[1767820971241,0.01669637,91209.0,91196.0,0.010977]
[1767820974451,0.01669637,91209.0,91193.0,0.010977]
[1767820974751,0.01669637,91209.0,91194.0,0.010977]
[1767820978253,0.01669637,91209.0,91196.0,0.010977]
[1767820980654,0.01669637,91209.0,91195.0,0.010977]
[1767820982356,0.01669637,91209.0,91196.0,0.010977]
[1767820982856,0.01499319,91213.0,91192.0,0.10730442]
[1767820983058,0.01499319,91211.0,91192.0,0.10730442]
[1767820983258,0.01499319,91211.0,91198.0,0.010976]
[1767820984254,0.01499319,91210.0,91198.0,0.010976]
[1767820984449,0.01499319,91210.0,91192.0,0.09332]
[1767820984852,0.09902795,91221.0,91208.0,0.010975]
[1767820985057,0.19230795,91226.0,91210.0,0.13338922]
[1767820985256,0.20730114,91226.0,91210.0,0.13338922]
[1767820985457,0.01499319,91224.0,91210.0,0.13338922]
[1767820985758,0.01499319,91223.0,91208.0,0.010975]
[1767820985958,0.01499319,91223.0,91210.0,0.13338922]
[1767820986155,0.01499319,91221.0,91203.0,0.09328]
[1767820986358,0.01499319,91215.0,91203.0,0.09328]
[1767820986557,0.09902795,91216.0,91203.0,0.09328]
[1767820987448,0.11402114,91222.0,91206.0,0.010976]
[1767820987761,0.01499319,91221.0,91206.0,0.010976]
[1767820988362,0.01499319,91221.0,91208.0,0.010975]
[1767820990263,0.01499319,91221.0,91205.0,0.010976]
[1767820991455,0.01499319,91221.0,91203.0,0.09328]
[1767820991657,0.01499319,91218.0,91203.0,0.09328]
[1767820992057,0.01499319,91218.0,91204.0,0.010976]
[1767820992960,0.01499319,91222.0,91206.0,0.010975]
[1767820993161,0.01499319,91222.0,91208.0,0.010975]
[1767820993459,0.01499319,91222.0,91206.0,0.010976]
[1767820996658,0.01499319,91222.0,91208.0,0.010975]
[1767820999668,0.01499319,91222.0,91205.0,0.010976]
[1767820999868,0.01499319,91220.0,91203.0,0.09328]
[1767821000067,0.01499319,91220.0,91204.0,0.010976]
[1767821001775,0.01499319,91218.0,91203.0,0.09328]
[1767821002074,0.01499319,91218.0,91203.0,0.104256]
[1767821006384,0.01499319,91222.0,91203.0,0.09328]
[1767821006584,0.01499319,91221.0,91203.0,0.09328]
[1767821007184,0.01499319,91221.0,91205.0,0.010976]
[1767821008277,0.01499319,91221.0,91203.0,0.104256]
[1767821014397,0.01291881,91220.0,91203.0,0.104256]
[1767821014586,0.01291881,91220.0,91204.0,0.010976]
[1767821014895,0.09867632,91221.0,91204.0,0.010976]
[1767821015896,0.09867632,91221.0,91205.0,0.010976]
[1767821016487,0.09867632,91221.0,91203.0,0.10727483]
[1767821016688,0.01291881,91226.0,91205.0,0.01399483]
[1767821016888,0.01291881,91226.0,91206.0,0.01399483]
[1767821017197,0.01291881,91226.0,91207.0,0.010975]
[1767821017399,0.11159513,91226.0,91207.0,0.010975]
[1767821017594,0.01291881,91225.0,91207.0,0.010975]
[1767821019700,0.01291881,91225.0,91206.0,0.01399483]
[1767821024603,0.01291881,91225.0,91206.0,0.02496983]
[1767821033324,0.01291881,91225.0,91207.0,0.01399483]
[1767821041410,0.11159513,91222.0,91204.0,0.09328]
[1767821041612,0.01291881,91218.0,91199.0,0.010976]
[1767821041815,0.09707381,91214.0,91200.0,0.09328]
[1767821042218,0.01256814,91208.0,91197.0,0.09328]
[1767821042418,0.01256814,91208.0,91192.0,0.09328]
[1767821042916,0.09707381,91209.0,91192.0,0.09328]
[1767821043121,0.01256814,91211.0,91192.0,0.10571851]
[1767821043310,0.01256814,91211.0,91193.0,0.01243851]
[1767821043717,0.09707381,91214.0,91195.0,0.10281176]
[1767821043918,0.09707381,91214.0,91196.0,0.01243851]
[1767821048432,0.10930511,91214.0,91196.0,0.01243851]
[1767821048731,0.0122313,91213.0,91195.0,0.09037325]
[1767821049727,0.0122313,91213.0,91192.0,0.10521199]
[1767821054237,0.0122313,91213.0,91193.0,0.01193199]
[1767821055038,0.0122313,91213.0,91195.0,0.01193199]
[1767821061533,0.0122313,91213.0,91196.0,0.010977]
[1767821062437,0.0122313,91213.0,91195.0,0.01193199]
[1767821063037,0.09707381,91214.0,91195.0,0.01193199]
[1767821064639,0.10930511,91214.0,91195.0,0.01193199]
[1767821066942,0.0122313,91213.0,91194.0,0.09798938]
[1767821068830,0.0122313,91213.0,91194.0,0.10896638]
[1767821069141,0.0122313,91213.0,91194.0,0.12089837]
[1767821069549,0.0122313,91213.0,91195.0,0.02290899]
[1767821071345,0.09707381,91214.0,91196.0,0.010977]
[1767821071543,0.09707381,91214.0,91197.0,0.010977]
[1767821074250,0.01114606,91215.0,91197.0,0.10731761]
[1767821075944,0.09328,91217.0,91201.0,0.01071858]
[1767821076144,0.09719418,91224.0,91192.0,0.09328]
[1767821076145,0.01114606,91226.0,91207.0,0.14412148]
[1767821076339,0.01114606,91225.0,91207.0,0.1334029]
[1767821076742,0.09328,91228.0,91208.0,0.01071858]
[1767821077143,0.10442606,91228.0,91208.0,0.01071858]
[1767821077340,0.10834024,91226.0,91207.0,0.09634061]
[1767821077545,0.01114606,91223.0,91202.0,0.20033919]
[1767821078137,0.01114606,91223.0,91203.0,0.01071858]
[1767821078949,0.01114606,91223.0,91204.0,0.10705919]
[1767821079141,0.01114606,91226.0,91207.0,0.10705919]
[1767821079347,0.01114606,91226.0,91208.0,0.01071858]
[1767821080749,0.01333836,91229.0,91209.0,0.01071858]
[1767821080949,0.09328,91228.0,91209.0,0.01071858]
[1767821081250,0.10442606,91228.0,91209.0,0.01071858]
[1767821083857,0.01114606,91227.0,91209.0,0.01071858]
[1767821085456,0.01114606,91227.0,91208.0,0.09634061]
[1767821087659,0.09328,91228.0,91209.0,0.01071858]
[1767821087858,0.10442606,91228.0,91209.0,0.01071858]
[1767821088258,0.10442606,91228.0,91209.0,0.02169358]
[1767821088759,0.10442606,91228.0,91209.0,0.01071858]
[1767821089954,0.01114606,91227.0,91209.0,0.01071858]
[1767821090751,0.09328,91228.0,91210.0,0.1334029]
[1767821090954,0.0021923,91229.0,91217.0,0.010974]
[1767821091363,0.0021923,91229.0,91215.0,0.10705919]
[1767821092655,0.0021923,91229.0,91216.0,0.010974]
[1767821094560,0.0021923,91229.0,91215.0,0.10705919]
[1767821095158,0.0021923,91229.0,91215.0,0.09634061]
[1767821097557,0.0021923,91229.0,91214.0,0.01071858]
[1767821098562,0.0021923,91229.0,91213.0,0.02169358]
[1767821098767,0.0021923,91229.0,91214.0,0.01071858]
[1767821101565,0.0021923,91229.0,91211.0,0.02169358]
[1767821101875,0.0021923,91229.0,91212.0,0.01021444]
[1767821102273,0.0021923,91229.0,91213.0,0.01021444]
[1767821105977,0.0021923,91229.0,91214.0,0.01021444]
[1767821112683,0.09328,91236.0,91222.0,0.00967415]
[1767821112891,0.09328,91236.0,91221.0,0.09723058]
[1767821113081,0.09328,91236.0,91219.0,0.14307705]
[1767821113282,0.00958671,91235.0,91216.0,0.09723058]
[1767821114574,0.00958671,91235.0,91217.0,0.00967415]
[1767821116686,0.20035625,91236.0,91217.0,0.00967415]